bitfinex/quotes_SOLUSD_20251223
["timestamp","ask_amount","ask_price","bid_price","bid_amount"]
[1766517841305,0.68,124.0,123.98,1.89490308]
[1766517843002,8.06469588,124.0,123.97,10.43767296]
[1766517843181,0.68,123.99,123.97,12.33257604]
[1766517844107,0.68,123.99,123.97,13.01257604]
[1766517846110,0.68,123.99,123.96,1.89490308]
[1766517846309,0.68,123.99,123.97,1.89490308]
[1766517850198,0.68,123.98,123.95,1.89490308]
[1766517850401,0.68,123.98,123.96,1.89490308]
[1766517852314,0.68,123.98,123.95,0.67]
[1766517852513,0.68,123.98,123.95,2.56490308]
[1766517852822,0.68,123.98,123.95,0.67]
[1766517853117,0.68,123.98,123.96,1.89490308]
[1766517853517,0.68,123.98,123.95,0.67]
[1766517853714,0.68,123.98,123.95,2.56490308]
[1766517854105,0.68,123.98,123.95,0.67]
[1766517854321,0.68,123.98,123.95,2.56490308]
[1766517856724,8.74584595,123.98,123.95,2.56490308]
[1766517860123,8.74584595,123.98,123.95,0.67]
[1766517861326,0.68,123.98,123.95,0.67]
[1766517861543,8.74584954,123.98,123.95,0.67]
[1766517862130,0.68,123.99,123.95,2.56490308]
[1766517862345,2.57490308,123.99,123.96,0.67]
[1766517862505,0.68,123.97,123.95,0.67]
[1766517862833,0.68,123.98,123.95,2.56490308]
[1766517863012,0.68,123.99,123.96,0.67]
[1766517865337,0.68,123.98,123.95,2.56490308]
[1766517865512,0.68,123.98,123.96,0.67]
[1766517866147,2.57490308,123.98,123.94,11.10767296]
[1766517866308,1.89490308,123.98,123.95,0.67]
[1766517866509,2.57490308,123.98,123.95,0.67]
[1766517868341,0.68,123.98,123.95,0.67]
[1766517868710,8.74591167,123.98,123.95,0.67]
[1766517875423,8.74591167,123.98,123.95,2.56490308]
[1766517877748,0.7,124.0,123.97,0.7]
[1766517880242,8.06458908,124.0,123.96,2.96180432]
[1766517880428,0.7,123.99,123.96,3.66180432]
[1766517880628,0.7,123.99,123.96,0.7]
[1766517880828,0.7,123.99,123.96,3.66180432]
[1766517881029,0.7,123.99,123.96,2.96180432]
[1766517881429,0.7,123.99,123.97,0.7]
[1766517886135,0.7,123.99,123.96,0.7]
[1766517887560,0.7,123.99,123.97,2.96180432]
[1766517887862,0.7,123.99,123.97,3.66180432]
[1766517888160,0.7,123.99,123.97,2.96180432]
[1766517888462,0.7,123.99,123.97,3.66180432]
[1766517888759,0.7,123.99,123.96,2.96180432]
[1766517889059,0.7,123.99,123.96,3.66180432]
[1766517889252,2.96180432,123.98,123.92,0.7]
[1766517889442,0.7,123.96,123.92,3.66180432]
[1766517889985,0.7,123.94,123.9,3.76180432]
[1766517890266,0.7,123.93,123.9,3.76180432]
[1766517890639,0.7,123.93,123.9,14.19947728]
[1766517891151,0.7,123.93,123.91,0.7]
[1766517892566,0.7,123.93,123.91,3.66180432]
[1766517893060,8.76853843,123.94,123.91,3.66180432]
[1766517894768,0.7,123.93,123.91,2.96180432]
[1766517896157,0.7,123.93,123.91,3.66180432]
[1766517897652,0.7,123.93,123.91,2.96180432]
[1766517898148,0.7,123.93,123.91,3.66180432]
[1766517900273,0.7,123.93,123.91,2.96180432]
[1766517900874,0.7,123.93,123.9,14.19947728]
[1766517901750,8.76923796,123.93,123.9,14.19947728]
[1766517905873,8.76923796,123.93,123.91,2.96180432]
[1766517906169,8.76923796,123.93,123.9,11.23767296]
[1766517906375,8.76923796,123.93,123.92,2.96180432]
[1766517913995,8.06874536,123.94,123.92,2.96180432]
[1766517914295,14.74,123.96,123.93,3.61180432]
[1766517914498,14.74,123.96,123.94,2.96180432]
[1766517914994,22.80743515,123.96,123.94,2.96180432]
[1766517915400,8.06684859,123.97,123.95,3.61180432]
[1766517915579,8.06581706,123.98,123.96,2.96180432]
[1766517915775,8.06581706,123.98,123.96,3.61180432]
[1766517916179,8.73581706,123.98,123.96,2.96180432]
[1766517920588,8.73562457,123.99,123.97,2.96180432]
[1766517920791,8.73562457,123.99,123.97,3.61180432]
[1766517924083,8.73562457,123.99,123.97,0.65]
[1766517924903,8.73562457,123.99,123.98,2.96180432]
[1766517925102,8.73562457,123.99,123.97,0.65]
[1766517925284,8.73562457,123.99,123.97,3.61180432]
[1766517929122,8.73562457,123.99,123.95,14.74]
[1766517929303,8.73562457,123.99,123.94,0.65]
[1766517929304,0.67,123.99,123.94,0.65]
[1766517929494,0.67,123.99,123.96,3.61180432]
[1766517930503,8.73567676,123.99,123.96,2.96180432]
[1766517930705,8.06386581,124.01,123.99,0.65]
[1766517930883,8.73386581,124.01,123.99,0.65]
[1766517931386,8.73386581,124.01,123.99,2.96180432]
[1766517931585,0.67,124.0,123.96,0.65]
[1766517931789,0.67,124.0,123.96,2.96180432]
[1766517931991,0.67,124.0,123.96,3.61180432]
[1766517932313,0.67,124.0,123.96,0.65]
[1766517932493,0.67,124.0,123.96,3.61180432]
[1766517932693,0.67,123.98,123.96,2.96180432]
[1766517933184,0.67,123.98,123.95,14.74]
[1766517933389,0.7,123.97,123.94,3.61180432]
[1766517933589,0.7,123.97,123.94,2.96180432]
[1766517933784,0.7,123.97,123.94,3.65180432]
[1766517934503,8.7667307,123.97,123.94,3.65180432]
[1766517935102,8.7667307,123.97,123.93,14.74]
[1766517935103,8.06581706,123.98,123.95,0.69]
[1766517935303,8.76581706,123.98,123.95,3.65180432]
[1766517938395,0.7,123.97,123.95,2.96180432]
[1766517939206,8.76647396,123.97,123.95,2.96180432]
[1766517939615,8.06647396,123.97,123.95,0.66]
[1766517941012,10.66307769,123.97,123.93,17.29660373]
[1766517941205,9.96307769,123.97,123.92,10.43767296]
[1766517941409,2.59660373,123.96,123.93,15.4]
[1766517941803,1.89660373,123.94,123.91,0.66]
[1766517941998,2.59660373,123.94,123.91,0.66]
[1766517943517,10.66529897,123.94,123.91,0.66]
[1766517951322,8.06869524,123.94,123.91,0.66]
[1766517952201,8.76869524,123.94,123.91,0.66]
[1766517957423,8.06869524,123.94,123.91,0.66]
[1766517957727,0.7,123.93,123.91,0.66]
[1766517957909,10.66529897,123.94,123.91,0.66]
[1766517961512,1.89660373,123.93,123.91,0.66]
[1766517962129,10.66529897,123.94,123.91,0.66]
[1766517963009,0.7,123.91,123.88,0.1]
[1766517963206,1.89660373,123.89,123.88,0.1]
[1766517963521,14.74,123.9,123.88,0.76]
[1766517965630,16.63660373,123.9,123.88,0.76]
[1766517965827,1.89660373,123.9,123.88,0.76]
[1766517966031,16.63660373,123.9,123.88,0.76]
[1766517966921,24.7077728,123.9,123.88,1e-08]
[1766517967120,0.66,123.88,123.83,0.06250172]
[1766517967326,16.63660373,123.87,123.83,10.03457174]
[1766517967531,14.74,123.87,123.83,10.03457174]
[1766517967735,16.63660373,123.87,123.83,10.03457174]
[1766517967936,17.29660373,123.87,123.83,1.95910545]
[1766517968137,9.97032321,123.86,123.83,0.06250172]
[1766517968334,2.55660373,123.85,123.83,0.06250172]
[1766517969336,10.63032321,123.86,123.83,0.78250172]
[1766517969534,1.89660373,123.85,123.83,0.78250172]
[1766517969736,1.89660373,123.84,123.8,1.89660373]
[1766517969938,1.89660373,123.84,123.79,27.17427669]
[1766517969939,16.63660373,123.84,123.79,27.17427669]
[1766517970233,2.55660373,123.83,123.79,0.1]
[1766517970432,23.47555241,123.84,123.8,1.89660373]
[1766517970733,25.36958346,123.87,123.83,1.89660373]
[1766517970916,0.66,123.86,123.83,1.89660373]
[1766517971333,24.70958346,123.87,123.8,10.10435817]
[1766517971334,0.66,123.83,123.8,7.4]
[1766517971540,0.66,123.83,123.79,12.43427669]
[1766517971839,0.66,123.83,123.8,0.71]
[1766517972415,8.73560455,123.83,123.8,0.71]
[1766517972936,10.63220828,123.83,123.8,0.71]
[1766517973632,0.66,123.83,123.8,0.71]
[1766517973818,25.37217038,123.84,123.81,0.71]
[1766517974532,24.71217038,123.84,123.8,1.89660373]
[1766517974714,0.66,123.83,123.8,2.60660373]
[1766517975413,8.73567452,123.83,123.8,2.60660373]
[1766517975719,8.73567452,123.83,123.8,0.71]
[1766517976034,10.63227825,123.83,123.8,0.71]
[1766517977834,0.66,123.82,123.79,11.24767296]
[1766517979827,8.73684716,123.82,123.79,11.24767296]
[1766517980029,10.63345089,123.82,123.79,11.24767296]
[1766517980435,0.66,123.8,123.79,1e-08]
[1766517980634,0.66,123.79,123.78,1e-08]
[1766517980833,2.55660373,123.79,123.78,1e-08]
[1766517981032,0.66,123.79,123.75,0.71]
[1766517981228,2.55660373,123.79,123.75,1.89660373]
[1766517981428,2.55660373,123.79,123.76,0.71]
[1766517981943,10.63492893,123.79,123.76,0.71]
[1766517982118,9.97492893,123.79,123.73,31.66298426]
[1766517982319,17.29660373,123.78,123.74,0.71]
[1766517982543,17.29660373,123.78,123.72,0.71]
[1766517982544,1.89660373,123.76,123.72,0.71]
[1766517982731,2.55660373,123.75,123.72,0.71]
[1766517983131,17.29660373,123.75,123.72,0.71]
[1766517983642,17.29660373,123.75,123.7,18.52128089]
[1766517983643,0.66,123.74,123.7,1.89660373]
[1766517983858,8.74227318,123.73,123.69,2.60660373]
[1766517984031,8.74227318,123.73,123.7,0.71]
[1766517984749,0.66,123.74,123.71,0.71]
[1766517985149,15.4,123.74,123.71,0.71]
[1766517985353,0.66,123.74,123.71,0.71]
[1766517985556,1.89660373,123.73,123.68,25.88767296]
[1766517985744,2.55660373,123.72,123.69,0.71]
[1766517986059,8.74255527,123.73,123.69,2.60660373]
[1766517986240,0.66,123.73,123.7,0.71]
[1766517989438,9.97876298,123.73,123.69,1.89660373]
[1766517989638,1.89660373,123.72,123.68,11.14767296]
[1766517989840,2.55660373,123.72,123.69,0.71]
[1766517990036,10.63876298,123.73,123.69,2.60660373]
[1766517990231,10.63876298,123.73,123.69,0.71]
[1766517990447,0.66,123.72,123.69,0.71]
[1766517991361,8.74293958,123.72,123.68,12.33427669]
[1766517991673,2.55660373,123.71,123.68,10.43767296]
[1766517992448,2.55660373,123.7,123.67,4.61282318]
[1766517992628,1.89660373,123.7,123.67,4.61282318]
[1766517992965,8.08450344,123.7,123.67,4.61282318]
[1766517993133,22.84344523,123.71,123.67,5.32282318]
[1766517993332,0.65,123.7,123.67,5.32282318]
[1766517993533,0.65,123.7,123.67,7.21942691]
[1766517993734,0.65,123.7,123.67,5.32282318]
[1766517993933,0.65,123.7,123.67,7.21942691]
[1766517994657,0.65,123.7,123.67,5.32282318]
[1766517995957,8.7342316,123.7,123.67,4.61282318]
[1766517996569,0.65,123.69,123.67,4.61282318]
[1766517997134,10.6801199,123.71,123.67,5.30282318]
[1766517997465,0.7,123.7,123.67,5.30282318]
[1766517999668,22.84351617,123.71,123.67,7.19942691]
[1766517999669,23.54351617,123.71,123.67,7.19942691]
[1766518000053,23.54351617,123.71,123.67,8.27864225]
[1766518000352,0.7,123.7,123.67,8.27864225]
[1766518003269,22.84371959,123.71,123.67,4.61282318]
[1766518003475,0.7,123.7,123.67,8.27864225]
[1766518003639,14.76,123.72,123.7,0.69]
[1766518003843,14.76,123.72,123.69,3.66581907]
[1766518004051,15.46,123.72,123.69,3.66581907]
[1766518005159,14.76,123.72,123.7,0.69]
[1766518005364,0.7,123.75,123.71,3.66581907]
[1766518006372,0.7,123.74,123.71,3.66581907]
[1766518008072,8.78154574,123.74,123.71,3.66581907]
[1766518008468,8.08154574,123.74,123.7,8.08397357]
[1766518008645,8.78154574,123.74,123.71,0.69]
[1766518013667,0.7,123.74,123.71,3.66581907]
[1766518014773,0.7,123.74,123.7,8.08397357]
[1766518014774,0.7,123.73,123.7,11.74979264]
[1766518016276,0.7,123.73,123.7,0.69]
[1766518016478,8.78214124,123.73,123.7,3.66581907]
[1766518016782,8.78214124,123.73,123.7,0.69]
[1766518016974,8.78214124,123.73,123.7,3.66581907]
[1766518017175,0.7,123.73,123.7,3.66581907]
[1766518018479,0.7,123.71,123.69,10.43767296]
[1766518018658,2.97581907,123.72,123.67,4.61282318]
[1766518018659,0.7,123.69,123.67,4.61282318]
[1766518019784,0.7,123.68,123.67,4.61282318]
[1766518021582,8.78538163,123.68,123.67,4.61282318]
[1766518021884,0.7,123.68,123.67,4.61282318]
[1766518025168,0.7,123.69,123.67,4.61282318]
[1766518025695,0.7,123.7,123.67,5.30282318]
[1766518025896,0.7,123.7,123.67,8.27864225]
[1766518026264,0.7,123.7,123.67,5.30282318]
[1766518026464,15.46,123.71,123.67,15.67458579]
[1766518026680,0.7,123.71,123.68,0.69]
[1766518026884,0.7,123.71,123.67,16.36458579]
[1766518027788,0.7,123.71,123.68,2.97581907]
[1766518030099,0.7,123.71,123.67,13.38876672]
[1766518030283,0.7,123.71,123.68,2.97581907]
[1766518030594,0.7,123.71,123.68,3.66581907]
[1766518031193,0.7,123.71,123.68,2.97581907]
[1766518031704,0.7,123.73,123.7,0.69]
[1766518031869,18.43581907,123.75,123.71,3.66581907]
[1766518032072,0.7,123.74,123.71,3.66581907]
[1766518032288,8.78165219,123.74,123.71,0.69]
[1766518032774,8.78165219,123.74,123.7,0.69]
[1766518032775,3.67581907,123.74,123.7,0.69]
[1766518033192,11.75741612,123.74,123.7,0.69]
[1766518033394,8.78159705,123.74,123.7,11.74976747]
[1766518033593,0.7,123.74,123.71,0.69]
[1766518035802,2.97581907,123.72,123.69,7.4]
[1766518036105,0.7,123.71,123.69,7.4]
[1766518037186,0.7,123.71,123.68,11.12767296]
[1766518039576,8.08228991,123.73,123.7,3.66581907]
[1766518039899,11.75810898,123.73,123.7,0.69]
[1766518040582,8.78228991,123.73,123.69,3.66581907]
[1766518040782,11.75810898,123.73,123.69,3.66581907]
[1766518041484,0.7,123.72,123.69,0.69]
[1766518041682,0.7,123.72,123.69,3.66581907]
[1766518042101,0.7,123.72,123.7,7.4]
[1766518043708,0.7,123.72,123.66,20.21579344]
[1766518043709,2.97581907,123.69,123.64,0.69]
[1766518043877,14.76,123.68,123.64,0.69]
[1766518044085,22.84596402,123.68,123.64,0.69]
[1766518044290,2.97581907,123.67,123.64,0.69]
[1766518046217,22.87596402,123.68,123.64,0.69]
[1766518046423,2.97581907,123.67,123.64,0.69]
[1766518046733,11.06185616,123.67,123.64,0.69]
[1766518047517,22.84560594,123.68,123.64,2.97581907]
[1766518047820,2.97581907,123.67,123.63,0.69]
[1766518048510,8.0866893,123.66,123.63,0.69]
[1766518048995,11.06211761,123.67,123.63,0.69]
[1766518050516,8.08629854,123.67,123.63,0.69]
[1766518050896,11.06211761,123.67,123.63,0.69]
[1766518051291,11.06266017,123.66,123.63,0.69]
[1766518051494,8.0868411,123.66,123.63,0.69]
[1766518051702,25.82266017,123.66,123.63,0.69]
[1766518051896,0.03,123.63,123.58,0.69]
[1766518052189,2.97581907,123.62,123.59,0.69]
[1766518052415,2.97581907,123.61,123.57,0.1]
[1766518052620,14.76,123.6,123.57,0.79]
[1766518052822,14.76,123.6,123.58,0.69]
[1766518053424,25.8552535,123.62,123.58,3.66581907]
[1766518053611,2.97581907,123.61,123.58,0.69]
[1766518054214,2.97581907,123.6,123.57,0.82]
[1766518054403,43.07269927,123.62,123.5,32.97581907]
[1766518054404,3.63581907,123.58,123.53,2.97581907]
[1766518054599,3.63581907,123.57,123.52,8.09570072]
[1766518054798,3.63581907,123.57,123.52,2.97581907]
[1766518055425,8.75308343,123.57,123.52,2.97581907]
[1766518055729,0.66,123.56,123.52,2.97581907]
[1766518056298,0.66,123.56,123.53,0.72]
[1766518057027,11.72936258,123.56,123.52,0.71]
[1766518057427,11.068664,123.57,123.54,0.71]
[1766518057605,8.09284493,123.57,123.51,11.07212914]
[1766518057805,3.64581907,123.56,123.52,0.71]
[1766518059020,11.73970818,123.55,123.5,21.51038043]
[1766518059231,11.73970818,123.55,123.51,0.71]
[1766518059617,26.49970818,123.55,123.51,0.71]
[1766518059807,2.97581907,123.54,123.51,0.71]
[1766518060010,26.49970818,123.55,123.51,0.71]
[1766518060323,20.22875839,123.59,123.51,2.97581907]
[1766518060535,20.22875839,123.59,123.5,30.68035669]
[1766518060536,3.64581907,123.57,123.52,2.47581907]
[1766518060737,8.09192425,123.58,123.54,2.97581907]
[1766518060924,23.54192425,123.58,123.55,0.71]
[1766518061126,20.22584339,123.61,123.55,3.68581907]
[1766518061127,8.09153886,123.59,123.55,3.68581907]
[1766518061442,20.22584339,123.61,123.55,3.68581907]
[1766518061443,26.51668319,123.6,123.56,0.71]
[1766518061618,15.45,123.6,123.56,3.68581907]
[1766518061932,15.45,123.6,123.57,2.61772345]
[1766518061933,22.87062642,123.6,123.57,2.61772345]
[1766518062252,25.44834987,123.6,123.55,2.61772345]
[1766518062545,2.57772345,123.59,123.55,2.61772345]
[1766518062912,0.67,123.59,123.55,1.90772345]
[1766518063116,10.66922167,123.59,123.56,0.71]
[1766518063317,8.76149822,123.59,123.56,0.71]
[1766518063541,10.66922167,123.59,123.56,0.71]
[1766518063914,8.76149822,123.59,123.56,0.71]
[1766518065843,8.76149822,123.59,123.56,2.61772345]
[1766518066237,8.76149822,123.59,123.56,0.71]
[1766518068547,0.67,123.59,123.56,2.61772345]
[1766518068721,23.54090351,123.6,123.56,2.61772345]
[1766518068921,23.54090351,123.6,123.56,0.71]
[1766518069122,23.54090351,123.6,123.56,2.61772345]
[1766518069424,23.54090351,123.6,123.57,1.90772345]
[1766518069615,23.54090351,123.6,123.56,2.61772345]
[1766518070014,22.87090351,123.6,123.57,2.61772345]
[1766518070219,8.09019512,123.61,123.58,2.61772345]
[1766518070442,22.87019512,123.61,123.58,2.61772345]
[1766518070825,22.87019512,123.61,123.58,0.71]
[1766518071026,22.87019512,123.61,123.58,2.61772345]
[1766518071548,22.87019512,123.61,123.58,0.71]
[1766518071775,23.54019512,123.61,123.58,0.71]
[1766518072132,25.44791857,123.61,123.57,0.71]
[1766518072354,0.67,123.6,123.57,0.71]
[1766518073232,2.57772345,123.6,123.57,0.71]
[1766518073439,0.67,123.59,123.55,2.61772345]
[1766518073848,24.77952562,123.59,123.55,0.71]
[1766518074035,25.44952562,123.59,123.55,0.71]
[1766518074236,25.44952562,123.59,123.55,1.90772345]
[1766518074425,23.54180217,123.59,123.56,0.71]
[1766518074963,14.78,123.6,123.58,0.71]
[1766518075255,14.78,123.6,123.57,2.61772345]
[1766518078643,14.78,123.6,123.57,0.71]
[1766518078841,22.87089062,123.6,123.57,0.71]
[1766518079336,25.44861407,123.6,123.56,0.71]
[1766518080230,23.54089062,123.6,123.57,0.71]
[1766518080546,23.54089062,123.6,123.57,2.61772345]
[1766518080547,22.87089062,123.6,123.57,2.61772345]
[1766518080747,14.78,123.6,123.58,0.71]
[1766518081062,22.87022616,123.61,123.59,0.71]
[1766518081665,20.89066921,123.64,123.6,2.61772345]
[1766518081956,22.86813392,123.64,123.61,2.61772345]
[1766518082347,22.86813392,123.64,123.61,0.71]
[1766518083262,23.53813392,123.64,123.61,0.71]
[1766518085044,22.86813392,123.64,123.61,2.61772345]
[1766518085360,8.75690801,123.66,123.62,2.61772345]
[1766518085655,14.78,123.65,123.63,0.71]
[1766518086738,22.86735168,123.65,123.63,0.71]
[1766518087360,22.86735168,123.65,123.62,1.90772345]
[1766518087566,23.58735168,123.65,123.62,1.90772345]
[1766518089153,23.58735168,123.65,123.62,2.62772345]
[1766518089742,14.78,123.65,123.63,2.62772345]
[1766518093560,12.28,123.65,123.63,2.62772345]
[1766518093751,8.08673154,123.66,123.64,1.90772345]
[1766518093954,8.08673154,123.66,123.65,0.72]
[1766518094155,0.72,123.65,123.6,0.80906148]
[1766518094354,8.80746132,123.65,123.61,12.34539641]
[1766518094664,0.72,123.64,123.61,12.34539641]
[1766518095252,0.72,123.64,123.6,1.90772345]
[1766518096464,0.72,123.63,123.58,8.81167916]
[1766518096668,0.72,123.62,123.58,2.62772345]
[1766518097580,0.72,123.62,123.59,1.90772345]
[1766518097749,0.72,123.62,123.59,2.62772345]
[1766518098681,0.72,123.62,123.59,0.72]
[1766518098889,0.72,123.62,123.59,2.62772345]
[1766518099475,0.72,123.62,123.59,0.72]
[1766518099674,0.72,123.62,123.59,2.62772345]
[1766518101072,0.72,123.62,123.57,13.06539641]
[1766518101073,0.72,123.61,123.57,13.06539641]
[1766518101271,0.72,123.6,123.56,2.62772345]
[1766518101483,0.72,123.6,123.56,0.72]
[1766518101674,8.09119636,123.6,123.56,0.72]
[1766518101981,0.72,123.59,123.56,0.72]
[1766518102481,0.72,123.59,123.56,1.90772345]
[1766518102690,0.72,123.59,123.55,23.59359069]
[1766518102852,0.72,123.59,123.56,1.90772345]
[1766518103466,0.72,123.59,123.56,0.72]
[1766518103754,0.72,123.59,123.56,2.62772345]
[1766518105469,0.72,123.59,123.56,1.90772345]
[1766518105664,0.72,123.58,123.56,1.90772345]
[1766518107168,0.72,123.58,123.55,8.81359069]
[1766518107475,0.72,123.58,123.55,0.72]
[1766518107684,0.72,123.58,123.56,1.90772345]
[1766518108792,0.72,123.6,123.56,10.72082641]
[1766518109268,0.72,123.6,123.57,1.90772345]
[1766518110058,0.72,123.59,123.56,2.62772345]
[1766518110460,0.72,123.59,123.56,10.72086624]
[1766518110687,0.72,123.59,123.56,1.90772345]
[1766518110983,0.72,123.59,123.57,1.90772345]
[1766518112090,0.72,123.61,123.58,1.90772345]
[1766518112380,0.72,123.61,123.55,1.90772345]
[1766518112560,0.72,123.61,123.58,1.90772345]
[1766518112874,0.72,123.61,123.59,1.90772345]
[1766518113271,8.08897698,123.63,123.59,1.90772345]
[1766518113583,0.67,123.62,123.59,1.90772345]
[1766518114861,0.67,123.62,123.59,9.99892869]
[1766518116060,0.67,123.62,123.59,1.90772345]
[1766518121393,8.75963744,123.62,123.59,1.90772345]
[1766518122884,8.75963744,123.62,123.58,1.90772345]
[1766518123769,8.75963744,123.62,123.59,1.90772345]
[1766518123986,8.75963744,123.62,123.59,2.97994283]
[1766518126368,8.75963744,123.62,123.57,8.0925791]
[1766518126563,0.71,123.61,123.59,2.97994283]
[1766518128196,0.71,123.61,123.57,8.0925791]
[1766518128374,0.71,123.61,123.59,2.97994283]
[1766518128692,0.71,123.61,123.57,8.0925791]
[1766518128990,0.71,123.61,123.59,2.97994283]
[1766518129167,0.71,123.61,123.58,2.97994283]
[1766518129370,0.71,123.6,123.56,17.75994283]
[1766518129578,0.71,123.6,123.56,14.78]
[1766518129978,0.71,123.6,123.56,17.75994283]
[1766518130269,0.71,123.58,123.55,13.41761579]
[1766518130471,0.71,123.58,123.55,10.43767296]
[1766518130691,0.71,123.58,123.56,2.97994283]
[1766518131175,26.55806775,123.64,123.57,18.56920074]
[1766518131368,0.71,123.63,123.61,2.97994283]
[1766518132295,8.79877502,123.63,123.58,8.09192425]
[1766518132596,8.79877502,123.63,123.59,2.97994283]
[1766518133879,0.71,123.62,123.59,2.97994283]
[1766518134483,8.08877502,123.63,123.56,28.32104618]
[1766518134484,0.71,123.6,123.56,22.86877502]
[1766518134681,0.71,123.6,123.56,17.75994283]
[1766518134881,0.71,123.6,123.57,2.97994283]
[1766518135693,0.71,123.6,123.56,22.87319026]
[1766518135994,0.71,123.6,123.58,2.97994283]
[1766518136377,0.71,123.61,123.58,2.97994283]
[1766518136703,0.71,123.61,123.59,2.97994283]
[1766518137479,0.71,123.62,123.59,2.97994283]
[1766518138806,0.71,123.62,123.57,8.90180095]
[1766518138984,0.71,123.62,123.59,2.97994283]
[1766518139680,0.71,123.61,123.58,8.09163223]
[1766518139883,0.71,123.61,123.58,11.07157506]
[1766518141486,0.71,123.6,123.56,2.97994283]
[1766518141880,0.71,123.6,123.57,2.97994283]
[1766518142077,0.71,123.6,123.57,11.0725185]
[1766518143420,25.84947177,123.62,123.58,2.97994283]
[1766518143421,0.71,123.61,123.58,2.97994283]
[1766518145314,0.71,123.61,123.57,8.09257567]
[1766518145487,0.71,123.61,123.58,2.97994283]
[1766518147622,0.71,123.61,123.58,11.07174277]
[1766518148225,0.71,123.61,123.59,2.97994283]
[1766518149433,0.71,123.61,123.58,11.07174277]
[1766518149723,0.71,123.61,123.58,2.97994283]
[1766518150509,8.80004196,123.61,123.56,22.87298274]
[1766518150710,0.7,123.6,123.57,2.97994283]
[1766518150890,2.97994283,123.6,123.56,2.97994283]
[1766518151089,0.7,123.59,123.56,2.97994283]
[1766518151291,8.0912957,123.59,123.55,11.07378634]
[1766518151521,0.7,123.58,123.55,11.07378634]
[1766518152090,0.7,123.58,123.55,2.97994283]
[1766518153623,0.7,123.58,123.54,22.87430233]
[1766518153790,8.0921542,123.58,123.54,14.78]
[1766518154109,0.7,123.56,123.52,11.07557358]
[1766518154333,0.7,123.56,123.53,2.97994283]
[1766518154684,0.7,123.56,123.54,2.97994283]
[1766518155593,0.7,123.58,123.55,2.97994283]
[1766518156112,0.7,123.58,123.56,2.97994283]
[1766518158211,0.7,123.58,123.55,11.07344857]
[1766518160693,0.7,123.58,123.55,2.97994283]
[1766518162035,0.7,123.57,123.52,8.09152317]
[1766518162213,0.7,123.57,123.53,2.97994283]
[1766518163213,0.7,123.56,123.52,8.09546636]
[1766518163398,0.7,123.56,123.52,11.07540919]
[1766518167318,0.7,123.55,123.52,11.07540919]
[1766518168520,0.7,123.55,123.51,22.87633965]
[1766518168827,0.7,123.55,123.51,25.85628248]
[1766518169232,0.7,123.55,123.51,22.87633965]
[1766518169529,0.7,123.55,123.52,2.97994283]
[1766518170425,0.7,123.55,123.51,22.87633965]
[1766518170632,0.7,123.55,123.52,2.97994283]
[1766518174828,0.7,123.55,123.52,11.07561867]
[1766518175704,0.7,123.55,123.51,22.87620995]
[1766518175905,0.7,123.55,123.52,2.97994283]
[1766518176335,0.7,123.55,123.52,11.0757519]
[1766518176635,0.7,123.55,123.52,2.97994283]
[1766518177437,0.69,123.54,123.52,2.97994283]
[1766518178310,0.69,123.55,123.52,11.07577987]
[1766518178505,8.09217296,123.58,123.52,28.33547434]
[1766518178727,0.69,123.57,123.52,28.33547434]
[1766518178940,0.69,123.57,123.54,2.97994283]
[1766518180835,0.69,123.56,123.54,2.97994283]
[1766518182012,0.69,123.56,123.52,8.09560552]
[1766518182213,0.69,123.56,123.54,2.97994283]
[1766518182723,0.69,123.56,123.53,2.97994283]
[1766518183126,0.69,123.56,123.53,11.07504727]
[1766518184822,0.69,123.56,123.52,8.09585492]